bitfinex/quotes_SOLUSD_20260124
["timestamp","ask_amount","ask_price","bid_price","bid_amount"]
[1769225644446,1.69672808,128.09,128.06,25.13078337]
[1769225645744,4.08521024,128.09,128.06,25.13078337]
[1769225646644,4.08521024,128.09,128.07,1.68870484]
[1769225646844,1.69672808,128.09,128.07,1.68870484]
[1769225647047,4.08521024,128.08,128.06,25.13078337]
[1769225647251,1.69672808,128.08,128.06,1.68870484]
[1769225647429,4.08521024,128.09,128.06,1.68870484]
[1769225647630,4.08521024,128.09,128.06,25.13078337]
[1769225652341,4.06283801,128.07,128.04,1.69567151]
[1769225652533,1.67435585,128.06,128.04,1.69567151]
[1769225652733,4.06283801,128.07,128.04,1.69567151]
[1769225655386,2.38848216,128.07,128.05,1.69567151]
[1769225656185,4.06283801,128.08,128.05,1.69567151]
[1769225663662,1.67435585,128.08,128.05,1.69567151]
[1769225663983,1.67435585,128.09,128.06,1.69567151]
[1769225667765,4.06283801,128.07,128.05,1.69567151]
[1769225681491,1.67435585,128.07,128.05,1.69567151]
[1769225701105,1.67435585,128.07,128.04,1.68243909]
[1769225701305,4.07068301,128.06,128.02,1.68243909]
[1769225702508,4.07068301,128.06,128.03,1.73013502]
[1769225703991,2.38854481,128.05,128.03,1.73013502]
[1769225704193,4.07068301,128.06,128.03,1.73013502]
[1769225707610,2.38854481,128.06,128.03,1.73013502]
[1769225707813,1.6411878,128.05,128.03,1.73013502]
[1769225709130,4.02973261,128.05,128.03,1.73013502]
[1769225712919,4.04397274,128.05,128.02,1.68513972]
[1769225722926,1.65542793,128.04,128.02,1.68513972]
[1769225723615,4.04397274,128.05,128.02,1.68513972]
[1769225727832,1.65542793,128.04,128.02,1.68513972]
[1769225728651,1.65542793,128.04,128.0,1.68513972]
[1769225728931,4.04397274,128.04,128.0,1.68513972]
[1769225729239,1.65542793,128.03,128.0,1.68513972]
[1769225730929,1.65542793,128.03,127.99,7.81300121]
[1769225731236,1.65542793,128.03,128.0,1.68513972]
[1769225737851,1.65542793,128.03,128.01,1.6050153]
[1769225738345,1.65542793,128.03,128.0,9.41744045]
[1769225740150,1.65542793,128.03,128.0,1.6050153]
[1769225745156,1.65542793,128.03,128.0,9.41748106]
[1769225745458,1.65542793,128.03,128.01,1.6050153]
[1769225745956,1.65542793,128.03,128.0,1.6050153]
[1769225756382,1.65542793,128.03,128.0,9.4174701]
[1769225757477,1.65542793,128.03,128.0,7.8124548]
[1769225757683,1.65542793,128.03,128.01,1.6050153]
[1769225764083,1.55044212,128.05,128.01,1.6050153]
[1769225764885,3.9402987,128.05,128.01,1.6050153]
[1769225766487,1.55044212,128.04,128.01,1.6050153]
[1769225771886,4.07315517,128.05,128.01,1.6050153]
[1769225773177,1.68329859,128.04,128.01,1.6050153]
[1769225774996,1.68329859,128.07,128.03,1.62956851]
[1769225775200,4.07315517,128.07,128.03,1.62956851]
[1769225775397,1.68329859,128.07,128.03,4.01942509]
[1769225775579,1.68329859,128.07,128.04,1.62956851]
[1769225778485,1.68329859,128.06,128.04,1.62956851]
[1769225790432,4.07315517,128.08,128.04,1.62956851]
[1769225790813,4.07315517,128.08,128.05,1.62956851]
[1769225791014,1.68329859,128.07,128.05,1.62956851]
[1769225791513,1.68329859,128.07,128.04,11.83123794]
[1769225793316,1.68329859,128.07,128.04,14.22109452]
[1769225793513,1.68329859,128.07,128.04,4.01942509]
[1769225793840,1.68329859,128.07,128.04,1.62956851]
[1769225804220,3.98146882,128.06,128.03,1.64093173]
[1769225804920,1.59161224,128.05,128.03,1.64093173]
[1769225806139,3.98146882,128.06,128.03,1.64093173]
[1769225808841,3.98146882,128.05,128.02,9.44701989]
[1769225809033,1.59161224,128.04,128.02,1.64093173]
[1769225809842,1.59161224,128.04,128.01,7.80727899]
[1769225810036,2.38936908,128.02,127.97,1.7478158]
[1769225810343,2.38936908,127.98,127.96,1.64093173]
[1769225811532,2.38936908,127.97,127.95,1.84093173]
[1769225812129,2.38936908,127.96,127.94,0.2]
[1769225813726,2.38936908,127.96,127.94,1.84093173]
[1769225814628,2.38936908,127.96,127.94,0.2]
[1769225814837,2.38936908,127.96,127.94,1.84093173]
[1769225815352,2.40991639,127.97,127.94,1.84093173]
[1769225815928,2.38936908,127.97,127.94,1.84093173]
[1769225816428,2.41387455,127.99,127.95,1.64093173]
[1769225817251,2.38936908,128.0,127.96,1.64093173]
[1769225817436,2.41779334,128.0,127.96,1.64093173]
[1769225818950,2.38936908,127.99,127.96,1.64093173]
[1769225819450,2.38936908,127.98,127.96,1.64093173]
[1769225820052,2.42549457,127.99,127.96,1.64093173]
[1769225823649,2.38936908,127.98,127.96,1.64093173]
[1769225824159,2.42549457,127.99,127.96,1.64093173]
[1769225827258,0.03612549,127.99,127.96,1.64093173]
[1769225834468,0.03612549,127.99,127.95,1.61148464]
[1769225835161,0.09797358,127.98,127.95,1.61148464]
[1769225836666,2.48734266,127.98,127.95,1.61148464]
[1769225838067,2.38936908,127.98,127.95,1.61148464]
[1769225838362,2.49643959,127.98,127.95,1.61148464]
[1769225839164,25.4724601,128.02,127.94,0.2]
[1769225839165,2.49941121,127.96,127.94,0.2]
[1769225839356,0.11004213,127.95,127.94,0.08995147]
[1769225839738,2.49941121,127.95,127.94,0.08995147]
[1769225840158,2.38936908,127.95,127.93,0.2]
[1769225840744,2.38936908,127.94,127.93,0.2]
[1769225840946,2.38936908,127.95,127.93,0.2]
[1769225841343,2.38936908,127.94,127.91,0.2]
[1769225841548,2.38936908,127.93,127.91,0.2]
[1769225844072,7.81433148,127.97,127.91,0.2]
[1769225844273,2.38936908,127.93,127.91,0.2]
[1769225844467,2.38936908,127.92,127.91,0.2]
[1769225844852,2.38936908,127.92,127.89,0.2]
[1769225845051,2.38936908,127.9,127.88,1.95081679]
[1769225845665,2.38936908,127.89,127.87,0.2]
[1769225846353,2.38936908,127.88,127.87,0.2]
[1769225846754,3.93172641,127.88,127.83,8.02282676]
[1769225846953,3.93172641,127.88,127.83,11.15332959]
[1769225846954,2.38936908,127.87,127.83,11.15332959]
[1769225847370,2.38936908,127.87,127.83,8.02282676]
[1769225847761,2.38936908,127.87,127.84,1.50801949]
[1769225848069,2.38936908,127.88,127.84,1.50801949]
[1769225849647,3.93172641,127.89,127.84,1.50801949]
[1769225850275,3.93172641,127.89,127.84,2.38936908]
[1769225850576,3.93172641,127.89,127.85,1.50801949]
[1769225856478,1.54235733,127.89,127.85,1.50801949]
[1769225856681,3.93172641,127.89,127.85,1.50801949]
[1769225858962,1.68196778,127.88,127.83,1.83689233]
[1769225859174,1.68196778,127.88,127.84,1.63689233]
[1769225859484,1.68196778,127.88,127.85,1.63689233]
[1769225860154,4.07133686,127.89,127.85,1.63689233]
[1769225864496,4.07133686,127.9,127.86,1.63689233]
[1769225864882,1.68196778,127.89,127.86,1.63689233]
[1769225866779,4.07133686,127.91,127.86,9.45789227]
[1769225866981,4.07133686,127.91,127.87,1.63689233]
[1769225869199,1.68196778,127.91,127.87,1.63689233]
[1769225870593,1.68196778,127.91,127.88,1.63689233]
[1769225873494,4.07622001,127.9,127.87,1.63689233]
[1769225873682,1.68196778,127.9,127.87,1.63689233]
[1769225874599,4.07622001,127.9,127.87,1.63689233]
[1769225879874,1.68196778,127.9,127.87,1.63689233]
[1769225883222,103.3,127.93,127.87,1.63689233]
[1769225883502,2.39425223,127.92,127.88,1.64001823]
[1769225883684,4.0762591,127.92,127.88,1.64001823]
[1769225884084,1.68200687,127.91,127.88,1.64001823]
[1769225885200,4.0762591,127.91,127.88,1.64001823]
[1769225888915,1.68200687,127.91,127.88,1.64001823]
[1769225891802,4.13286338,127.94,127.9,1.79197067]
[1769225892200,1.73861115,127.93,127.9,1.79197067]
[1769225894714,4.13286338,127.95,127.91,1.79197067]
[1769225895026,1.73861115,127.94,127.91,1.79197067]
[1769225898288,4.13286338,127.95,127.91,1.79197067]
[1769225898507,1.73861115,127.94,127.91,1.79197067]
[1769225906244,1.73861115,128.02,127.94,1.79197067]
[1769225906528,1.73861115,128.03,128.0,4.1862229]
[1769225906706,1.73861115,128.03,127.99,2.39425223]
[1769225906903,1.73861115,128.03,127.96,2.39425223]
[1769225907108,1.73861115,127.99,127.95,2.39425223]
[1769225908605,1.73861115,127.99,127.96,1.79197067]
[1769225910038,4.13286338,127.99,127.96,1.79197067]
[1769225914232,1.6739946,127.98,127.95,1.69515096]
[1769225916315,1.6739946,127.97,127.94,1.69515096]
[1769225916632,4.06824683,127.97,127.94,1.69515096]
[1769225917205,1.6739946,127.97,127.94,1.69515096]
[1769225918023,4.06824683,127.98,127.94,1.69515096]
[1769225918254,1.6739946,127.98,127.95,1.69515096]
[1769225919116,4.06824683,127.98,127.95,1.69515096]
[1769225921552,1.6739946,127.97,127.94,4.08940319]
[1769225922243,1.6739946,127.97,127.95,1.69515096]
[1769225924540,4.06824683,127.98,127.95,1.69515096]
[1769225932949,4.06591134,127.98,127.95,1.69515096]
[1769225934950,1.6739946,127.99,127.95,1.69515096]
[1769225935134,1.6739946,127.99,127.95,4.0870677]
[1769225935341,1.6739946,127.99,127.96,1.69515096]
[1769225936533,1.6739946,128.01,127.98,1.69515096]
[1769225936733,2.39191674,127.99,127.96,1.69515096]
[1769225938053,4.06591134,128.0,127.96,1.69515096]
[1769225938258,2.39191674,127.99,127.96,1.69515096]
[1769225939068,4.06591134,128.0,127.96,1.69515096]
[1769225941770,1.6739946,128.0,127.96,1.69515096]
[1769225942867,1.6739946,128.0,127.97,1.78700717]
[1769225943071,1.83758882,128.01,127.97,1.78700717]
[1769225943448,1.83758882,128.01,127.98,1.78700717]
[1769225944469,1.83758882,128.02,127.98,1.78700717]
[1769225944771,1.83758882,128.02,127.99,1.78700717]
[1769225946363,1.83758882,128.03,127.99,1.78700717]
[1769225946761,1.93758882,128.04,128.0,1.78700717]
[1769225947868,4.32950556,128.04,128.0,1.78700717]
[1769225948475,0.1,128.04,128.01,1.81717525]
[1769225949587,0.1,128.06,128.02,1.81717525]
[1769225950067,0.1,128.06,128.03,1.81717525]
[1769225950266,0.1,128.06,128.04,1.81717525]
[1769225952372,1.78595459,128.08,128.03,10.20215774]
[1769225952566,1.78595459,128.09,128.05,1.81717525]
[1769225952763,1.78595459,128.09,128.06,1.81717525]
[1769225952971,1.78595459,128.1,128.06,1.81717525]
[1769225953967,4.17787133,128.1,128.06,1.81717525]
[1769225955982,1.78595459,128.09,128.06,1.81717525]
[1769225956791,4.17787133,128.09,128.06,1.81717525]
[1769225958813,1.78595459,128.08,128.04,1.81717525]
[1769225962899,1.78595459,128.08,128.04,7.81001742]
[1769225963092,1.78595459,128.08,128.05,1.81717525]
[1769225964098,4.17787133,128.09,128.05,1.81717525]
[1769225964483,1.78595459,128.09,128.05,1.81717525]
[1769225969900,4.17787133,128.09,128.05,1.81717525]
[1769225970399,2.39191674,128.09,128.05,1.81717525]
[1769225970710,1.78595459,128.08,128.05,1.81717525]
[1769225972103,1.78595459,128.08,128.04,1.74550149]
[1769225972306,1.69808495,128.07,128.04,1.74550149]
[1769225982123,1.69808495,128.09,128.05,1.74550149]
[1769225982409,1.69808495,128.1,128.06,1.74550149]
[1769225982713,1.69808495,128.1,128.07,1.74550149]
[1769225983209,1.69808495,128.11,128.07,1.74550149]
[1769225983790,1.69808495,128.11,128.08,1.74550149]
[1769225985314,2.49191674,128.12,128.08,1.74550149]
[1769225985315,4.19000169,128.12,128.08,1.74550149]
[1769225985504,1.69808495,128.11,128.08,1.74550149]
[1769225987002,4.09000169,128.11,128.08,1.74550149]
[1769225989727,1.69808495,128.1,128.08,1.74550149]
[1769225990419,1.69808495,128.1,128.07,1.74550149]
[1769225990918,4.09000169,128.09,128.05,1.74550149]
[1769225991125,1.69808495,128.08,128.05,1.74550149]
[1769225991302,4.09000169,128.08,128.05,1.74550149]
[1769225992929,1.69808495,128.08,128.05,1.74550149]
[1769225996223,4.08629309,128.08,128.05,1.74550149]
[1769226002230,1.73033625,128.11,128.05,1.74550149]
[1769226002437,4.11854439,128.1,128.06,1.72607548]
[1769226003309,105.78820814,128.12,128.07,1.72607548]
[1769226003529,4.21854439,128.12,128.08,1.72607548]
[1769226003734,1.83033625,128.12,128.08,1.72607548]
[1769226004244,4.21854439,128.12,128.08,1.72607548]
[1769226013036,1.64159458,128.11,128.08,1.72607548]
[1769226013240,4.02980272,128.11,128.08,1.72607548]
[1769226013813,1.64159458,128.09,128.06,9.43352144]
[1769226014233,1.64159458,128.09,128.07,1.62495758]
[1769226014436,4.02980272,128.1,128.07,1.62495758]
[1769226018446,1.64159458,128.1,128.07,1.62495758]
[1769226018819,1.64159458,128.11,128.08,1.62495758]
[1769226019545,1.64159458,128.11,128.09,1.62495758]
[1769226019757,1.74159458,128.12,128.09,1.62495758]
[1769226020353,4.02980272,128.11,128.08,1.62495758]
[1769226022848,1.64159458,128.11,128.08,1.62495758]
[1769226023351,1.64159458,128.1,128.06,4.01316572]
[1769226023563,1.64159458,128.1,128.06,1.62495758]
[1769226023728,4.02980272,128.1,128.06,1.62495758]
[1769226024044,1.64159458,128.09,128.06,1.62495758]
[1769226030134,4.02980272,128.09,128.06,1.62495758]
[1769226031649,1.64159458,128.08,128.04,1.62495758]
[1769226031855,1.64159458,128.08,128.05,1.62495758]
[1769226034967,4.11278169,128.09,128.05,1.62495758]
[1769226035252,1.72457355,128.1,128.07,1.62616607]
[1769226036462,4.11278169,128.1,128.07,1.62616607]
[1769226039464,1.72457355,128.09,128.06,1.62616607]
[1769226039672,4.11278169,128.09,128.06,1.62616607]
[1769226054900,4.11243781,128.09,128.06,1.62616607]
[1769226055101,1.72457355,128.09,128.06,1.62616607]
[1769226055402,4.11243781,128.1,128.06,1.62616607]
[1769226055598,1.72457355,128.1,128.07,1.62616607]
[1769226059906,4.11243781,128.1,128.07,1.62616607]
[1769226060604,4.11243781,128.09,128.06,1.62616607]
[1769226060779,2.38786426,128.08,128.06,1.62616607]
[1769226060986,4.11243781,128.08,128.05,1.62616607]
[1769226062013,4.11243781,128.07,128.04,1.62616607]
[1769226062597,2.38786426,128.07,128.04,1.62616607]
[1769226063510,3.98215019,128.08,128.04,1.62616607]
[1769226063805,1.59428593,128.08,128.05,1.64104546]
[1769226070014,4.08671821,128.09,128.05,1.64104546]
[1769226070219,1.69885395,128.09,128.06,1.68447218]
[1769226071195,1.69885395,128.1,128.07,1.68447218]
[1769226071390,4.08671821,128.11,128.07,1.68447218]
[1769226072115,1.69885395,128.1,128.07,1.68447218]
[1769226075147,4.08671821,128.1,128.07,1.68447218]
[1769226088732,2.38786426,128.09,128.07,1.68447218]
[1769226090437,4.08671821,128.1,128.07,1.68447218]
[1769226090739,0.1,128.12,128.05,1.68447218]
[1769226090740,4.08671821,128.08,128.05,1.68447218]
[1769226093727,4.08141752,128.07,128.05,1.68447218]
[1769226095730,4.08141752,128.07,128.03,2.38786426]
[1769226095935,1.69355326,128.07,128.04,1.59417045]
[1769226096137,4.08141752,128.07,128.04,1.59417045]
[1769226096736,1.69355326,128.07,128.04,1.59417045]
[1769226100736,2.38786426,128.07,128.03,1.59417045]
[1769226100940,1.69355326,128.06,128.03,1.59417045]
[1769226138577,1.6432749,128.05,128.02,1.58620376]
[1769226138874,4.03200606,128.05,128.02,1.58620376]
[1769226145587,1.6432749,128.05,128.02,1.58620376]
[1769226150194,1.6432749,128.05,128.01,3.97493492]
[1769226150380,4.03200606,128.04,128.01,1.58620376]
[1769226150960,4.03200606,128.03,128.0,1.58620376]
[1769226152081,1.6432749,128.03,128.0,1.58620376]
[1769226159183,1.6432749,128.03,127.98,7.81354263]
[1769226159184,1.56487665,128.02,127.98,4.01135786]
[1769226159700,1.56487665,128.01,127.98,4.01135786]
[1769226160402,1.56487665,128.01,127.98,1.6226267]
[1769226166901,2.38873116,128.02,127.98,1.6226267]
[1769226167104,3.95360781,128.02,127.98,1.6226267]
[1769226168199,3.95360781,128.02,127.99,1.6226267]
[1769226168401,1.56487665,128.02,127.99,1.6226267]
[1769226168590,1.56487665,128.04,128.01,1.6226267]
[1769226171406,1.56487665,128.05,128.02,1.6226267]
[1769226171700,1.56487665,128.05,128.02,4.01135786]
[1769226172102,1.56487665,128.05,128.02,2.38873116]
[1769226172299,1.56487665,128.05,128.03,1.6226267]
[1769226173706,1.56487665,128.05,128.02,4.01135786]
[1769226176311,1.56487665,128.05,128.02,1.6226267]
[1769226181113,1.56487665,128.04,128.01,1.6226267]
[1769226188511,3.95410564,128.04,128.01,1.6226267]
[1769226192907,1.47226758,128.03,128.0,1.48461398]
[1769226194523,0.97226758,128.03,128.0,1.48461398]
[1769226196311,2.38922899,128.03,127.99,3.87384297]
[1769226196612,1.22356469,128.02,127.99,1.48461398]
[1769226199214,1.22356469,128.02,127.98,3.87384297]
[1769226199601,1.22356469,128.02,127.99,1.48461398]
[1769226199802,3.61279368,128.02,127.99,1.48461398]
[1769226203323,1.22356469,128.02,127.99,1.48461398]
[1769226213821,0.22356469,128.02,127.99,1.48461398]
[1769226233251,0.22356469,128.02,128.0,1.56204353]
[1769226233546,0.24079099,128.06,128.01,1.56204353]
[1769226233752,0.24079099,128.06,127.99,7.81287584]
[1769226233753,0.24079099,128.05,128.02,3.95127252]
[1769226235635,0.24079099,128.05,128.02,1.56204353]
[1769226241362,2.63875528,128.06,128.02,1.56204353]
[1769226242157,2.63875528,128.06,128.03,1.5569308]
[1769226242354,105.94079254,128.07,128.03,1.5569308]
[1769226243840,2.64079254,128.07,128.03,1.5569308]
[1769226247965,0.25144698,128.07,128.04,1.4582094]
[1769226248274,2.64746805,128.08,128.04,1.4582094]
[1769226248568,0.25812249,128.08,128.05,1.4582094]
[1769226267974,2.38934556,128.09,128.06,1.4582094]
[1769226268172,2.66379692,128.09,128.06,1.4582094]
[1769226277411,0.27445136,128.09,128.06,1.4582094]
[1769226282710,2.66379692,128.09,128.06,1.4582094]
[1769226283818,103.58506726,128.1,128.07,1.55887913]
[1769226284124,103.58506726,128.1,128.07,0.13339146]
[1769226286318,1.52078624,128.09,128.07,0.13339146]
[1769226286705,1.52078624,128.09,128.06,2.38934556]
[1769226286904,1.52078624,128.09,128.06,3.94822469]
[1769226295138,104.82078624,128.1,128.07,1.55887913]
[1769226299340,1.52078624,128.09,128.07,1.55887913]
[1769226300117,1.52078624,128.09,128.06,3.94822469]
[1769226300947,1.52078624,128.09,128.06,3.94643877]
[1769226301645,1.52078624,128.09,128.06,1.55887913]
[1769226302445,1.48950138,128.07,128.04,1.57689844]
[1769226303148,3.87706102,128.07,128.04,1.57689844]
[1769226305448,1.48950138,128.06,128.04,1.57689844]
[1769226305833,3.87706102,128.06,128.04,1.57689844]
[1769226306833,105.68755964,128.1,128.0,1.57689844]
[1769226306834,1.48950138,128.04,128.0,1.57689844]
[1769226307147,2.38755964,128.03,128.0,1.57689844]
[1769226307328,3.87706102,128.04,128.0,1.57689844]
[1769226307724,1.48950138,128.04,128.0,1.57689844]
[1769226307949,3.87706102,128.02,127.99,1.57689844]
[1769226309944,2.38755964,128.02,127.99,1.57689844]
[1769226310353,2.38755964,128.03,127.99,1.57689844]
[1769226310532,3.94033161,128.03,127.99,1.57689844]
[1769226310737,3.94033161,128.04,128.0,1.58258509]
[1769226313153,2.38755964,128.03,128.0,1.58258509]
[1769226320258,2.38755964,128.04,128.0,1.58258509]
[1769226320562,3.94033161,128.05,128.01,1.58258509]
[1769226323670,2.38755964,128.04,128.01,1.58258509]
[1769226340185,3.87587856,128.04,128.01,1.58258509]
[1769226341760,2.38755964,128.04,128.01,1.58258509]
[1769226341964,3.87587856,128.05,128.01,1.58258509]
[1769226353306,2.38755964,128.04,128.01,1.58258509]
[1769226354912,3.87587856,128.06,128.02,1.59221151]
[1769226355289,2.38755964,128.06,128.02,1.59221151]
[1769226355595,1.48831892,128.05,128.02,1.59221151]
[1769226356113,3.87587856,128.05,128.02,1.59221151]
[1769226357834,2.38755964,128.06,128.02,1.59221151]
[1769226358015,3.87587856,128.08,128.04,1.59221151]
[1769226358186,2.38755964,128.08,128.04,1.59221151]
[1769226358496,1.48831892,128.07,128.04,1.59221151]
[1769226359913,3.87587856,128.07,128.04,1.59221151]
[1769226360889,3.87708447,128.07,128.04,1.59221151]
[1769226366104,2.38876555,128.07,128.04,1.59221151]
[1769226366295,3.92997011,128.07,128.04,1.59221151]
[1769226366908,2.38876555,128.07,128.04,1.59221151]
[1769226367418,3.92997011,128.08,128.04,1.59221151]
[1769226367715,2.38876555,128.08,128.05,1.54599058]
[1769226368116,3.94830104,128.08,128.05,1.54599058]
[1769226370318,1.55953549,128.06,128.04,1.58825099]
[1769226371402,3.94830104,128.07,128.04,1.58825099]
[1769226374709,3.94830104,128.08,128.04,1.58825099]
[1769226378721,1.55953549,128.08,128.04,1.58825099]
[1769226378904,3.94830104,128.08,128.04,1.58825099]
[1769226379515,1.55953549,128.08,128.05,1.58825099]
[1769226379711,3.94830104,128.08,128.05,1.58825099]
[1769226384531,1.55953549,128.08,128.05,1.58825099]
[1769226384735,3.94830104,128.08,128.05,1.58825099]
[1769226395744,3.98564381,128.07,128.03,1.51972078]
[1769226396332,1.59687826,128.06,128.03,1.51972078]
[1769226396547,3.98564381,128.07,128.03,1.51972078]
[1769226397051,1.59687826,128.07,128.04,1.51972078]
[1769226404628,3.98564381,128.07,128.04,1.51972078]
[1769226416540,1.59687826,128.06,128.03,1.51972078]
[1769226422467,3.86339945,128.07,128.03,1.51972078]
[1769226422868,3.86345429,128.07,128.03,1.51972078]
[1769226425147,1.4746339,128.07,128.03,1.51972078]
[1769226425348,3.86345429,128.07,128.03,1.51972078]
[1769226426648,1.4746339,128.07,128.04,1.58188393]
[1769226427057,3.86345429,128.08,128.04,1.58188393]
[1769226429674,1.52938268,128.07,128.04,1.58188393]
[1769226451288,1.52938268,128.06,128.03,1.60850195]
[1769226451473,1.52938268,128.05,128.03,1.60850195]
[1769226452892,3.96583601,128.06,128.03,1.60850195]
[1769226484942,3.966126,128.06,128.03,1.60850195]
[1769226494248,1.52918784,128.04,128.01,1.50597423]
[1769226494423,3.91829822,128.04,128.01,1.50597423]
[1769226494623,3.91829822,128.02,127.99,1.50597423]
[1769226494830,1.52918784,128.02,127.99,1.50597423]
[1769226495750,3.91829822,128.03,127.99,1.50597423]
[1769226501354,3.91829822,128.02,127.99,1.50597423]
[1769226503054,3.91829822,128.01,127.98,1.50597423]
[1769226503350,1.52918784,127.99,127.95,2.38911038]
[1769226503558,1.52918784,127.99,127.96,1.50597423]
[1769226503732,3.91829822,127.99,127.96,1.50597423]
[1769226504340,1.52918784,127.99,127.96,1.50597423]
[1769226505455,3.91829822,127.99,127.96,1.50597423]
[1769226508655,3.91829822,128.0,127.96,1.50597423]
[1769226508839,1.52918784,128.02,127.98,1.50597423]
[1769226509046,3.91829822,128.02,127.98,1.50597423]
[1769226509246,1.52918784,128.01,127.98,1.50597423]
[1769226511038,3.91829822,128.01,127.98,1.50597423]
[1769226535251,2.38911038,128.01,127.98,1.50597423]
[1769226535452,1.48495869,128.0,127.98,1.50597423]
[1769226535781,1.48495869,127.99,127.96,1.55017576]
[1769226535970,3.87406907,127.99,127.96,1.55017576]
[1769226542776,1.48495869,127.99,127.96,1.55017576]
[1769226544676,3.89133159,128.0,127.96,1.55017576]
[1769226544979,3.89364326,128.0,127.96,1.55017576]
[1769226545284,1.50222121,127.99,127.96,1.55017576]
[1769226559275,3.89364326,127.99,127.96,1.55017576]
[1769226560097,1.53498021,127.98,127.96,1.55017576]
[1769226560674,2.39142205,127.99,127.93,0.2]
[1769226560675,1.53498021,127.96,127.93,0.2]
[1769226560877,3.92640226,127.95,127.93,0.2]
[1769226561072,3.92640226,127.94,127.92,0.2]
[1769226561284,3.92640226,127.93,127.91,1.65447004]
[1769226563800,3.92640226,127.92,127.89,1.65447004]
[1769226563980,2.39142205,127.91,127.89,1.65447004]
[1769226564601,3.92640226,127.91,127.89,1.65447004]
[1769226567305,3.92640226,127.91,127.89,0.2]
[1769226567891,2.39142205,127.9,127.89,0.2]
[1769226568486,3.92640226,127.9,127.88,0.2]
[1769226568689,3.92640226,127.9,127.88,1.65447004]
[1769226569084,3.92640226,127.89,127.87,0.2]
[1769226570408,3.92640226,127.89,127.87,1.65447004]
[1769226573716,3.86387816,127.88,127.86,1.64607241]
[1769226575684,3.86387816,127.88,127.86,0.2]
[1769226576103,3.86387816,127.88,127.86,1.64607241]
[1769226577708,3.86387816,127.88,127.85,0.2]
[1769226577709,3.86387816,127.87,127.85,0.2]
[1769226577902,2.39142205,127.86,127.85,0.2]
[1769226578292,2.39142205,127.86,127.84,1.44607241]
[1769226578504,3.83632275,127.86,127.83,1.64607241]
[1769226580611,2.39142205,127.84,127.83,0.2]
[1769226580807,1.44480323,127.85,127.83,0.2]
[1769226581019,3.83622528,127.85,127.83,0.2]
[1769226582015,2.39142205,127.86,127.83,1.64607241]
[1769226582196,3.83613443,127.86,127.83,1.64607241]
[1769226585000,3.83599918,127.88,127.83,1.64607241]
[1769226586606,2.39142205,127.88,127.83,1.64607241]
[1769226586805,3.83595231,127.88,127.83,1.64607241]
[1769226587006,3.83590642,127.87,127.83,1.64607241]
[1769226588705,2.39142205,127.87,127.83,1.64607241]
[1769226588900,3.83585225,127.88,127.83,1.64607241]
[1769226589197,2.39142205,127.86,127.83,1.64607241]
[1769226589402,3.83579235,127.86,127.83,1.64607241]
[1769226589729,1.4443703,127.86,127.83,1.64607241]
[1769226589901,3.83579235,127.86,127.83,1.64607241]
[1769226590101,1.4443703,127.86,127.83,1.64607241]
[1769226590320,3.83574003,127.87,127.83,1.64607241]
[1769226590522,1.44431798,127.87,127.83,1.64607241]
[1769226591516,3.83569522,127.88,127.83,1.64607241]
[1769226592312,3.83569522,127.88,127.84,1.44607241]
[1769226594707,2.39142205,127.88,127.84,1.44607241]
[1769226594908,3.83555262,127.89,127.84,1.44607241]
[1769226595728,2.39142205,127.88,127.84,1.44607241]
[1769226595927,3.83546127,127.88,127.84,1.44607241]
[1769226596117,2.39142205,127.87,127.84,1.44607241]
[1769226597925,3.83546127,127.88,127.84,1.44607241]
[1769226602821,1.44403922,127.88,127.84,1.44607241]
[1769226603103,3.83517036,127.89,127.84,1.44607241]
[1769226603309,3.83513117,127.88,127.84,1.44607241]
[1769226605122,3.83968552,127.88,127.84,1.44607241]
[1769226608719,1.44370912,127.88,127.84,1.44607241]
[1769226609735,104.74339399,127.9,127.85,1.44107948]
[1769226609935,107.13937039,127.9,127.85,1.44107948]
[1769226610136,3.83932085,127.89,127.85,1.44107948]
[1769226611522,1.44334445,127.89,127.85,1.44107948]
[1769226612538,1.44327005,127.89,127.85,1.44107948]
[1769226614142,105.6959764,127.9,127.87,1.44107948]
[1769226614143,103.3,127.9,127.87,1.44107948]
[1769226614449,1.44321413,127.91,127.87,1.44107948]
[1769226617543,1.44307698,127.9,127.87,1.44107948]
[1769226620245,1.4429112,127.89,127.87,1.44107948]
[1769226621028,3.8388876,127.9,127.87,1.44107948]
[1769226622448,1.44281094,127.93,127.87,1.44107948]
[1769226622619,3.83878734,127.91,127.87,1.44107948]
[1769226622826,1.44281094,127.91,127.87,1.44107948]
[1769226626723,1.44268602,127.92,127.88,1.4800645]
[1769226627122,1.44268602,127.92,127.88,2.3959764]
[1769226627426,1.44268602,127.92,127.89,1.4800645]
[1769226633160,3.83866242,127.92,127.89,1.4800645]
[1769226633757,1.44268602,127.92,127.89,1.4800645]
[1769226634053,3.83866242,127.92,127.89,1.4800645]
[1769226634237,1.44244747,127.91,127.89,1.4800645]
[1769226636437,2.3959764,127.92,127.89,1.4800645]
[1769226636760,1.44239644,127.92,127.89,1.4800645]
[1769226642764,3.83837284,127.92,127.89,1.4800645]
[1769226648971,2.3959764,127.92,127.89,1.4800645]